fUST/lending_fUST_20240814
["ID","MTS","AMOUNT","RATE_DAILY","PERIOD"]
[334908356,1723637440721,-500.0,0.00013698,2]
[334908357,1723637440731,-500.0,0.00013698,2]
[334908358,1723637440740,-500.0,0.00013698,2]
[334908359,1723637440749,-500.0,0.00013698,2]
[334908360,1723637440759,-500.0,0.00013698,2]
[334908361,1723637440768,-500.0,0.00013698,2]
[334908362,1723637440779,-500.0,0.00013698,2]
[334908363,1723637440788,-500.0,0.00013698,2]
[334908364,1723637440797,-500.0,0.00013698,2]
[334908365,1723637440808,-500.0,0.00013698,2]
[334908366,1723637440818,-531.26,0.00013698,2]
[334908367,1723637440827,-507.15897505,0.00013698,2]
[334908368,1723637440837,-500.0,0.00013698,2]
[334908369,1723637440847,-500.0,0.00013698,2]
[334908370,1723637440856,-500.0,0.00013698,2]
[334908371,1723637440866,-507.0401322,0.00013698,2]
[334908372,1723637440877,-521.93036736,0.00013698,2]
[334908373,1723637440887,-500.0,0.00013698,2]
[334908374,1723637440897,-500.0,0.00013698,2]
[334908375,1723637440908,-172.99687062,0.00013698,2]
[334908376,1723637440919,-500.0,0.00013698,2]
[334908377,1723637440931,-500.0,0.00013698,2]
[334908378,1723637440949,-500.0,0.00013698,2]
[334908379,1723637440959,-500.0,0.00013698,2]
[334908380,1723637440971,-500.0,0.00013698,2]
[334908381,1723637440981,-500.0,0.00013698,2]
[334908382,1723637440992,-506.12076137,0.00013698,2]
[334908383,1723637441002,-500.0,0.00013698,2]
[334908384,1723637441015,-682.27,0.00013698,2]
[334908385,1723637441024,-500.0,0.00013698,2]
[334908386,1723637441034,-500.0,0.00013698,2]
[334908387,1723637441044,-500.0,0.00013698,2]
[334908388,1723637441053,-500.0,0.00013698,2]
[334908389,1723637441063,-500.0,0.00013698,2]
[334908390,1723637441072,-500.0,0.00013698,2]
[334908391,1723637441082,-500.0,0.00013698,2]
[334908392,1723637441093,-545.33902437,0.00013698,2]
[334908393,1723637441103,-500.0,0.00013698,2]
[334908394,1723637441114,-500.0,0.00013698,2]
[334908395,1723637441124,-500.0,0.00013698,2]
[334908396,1723637441135,-500.0,0.00013698,2]
[334908397,1723637441145,-500.0,0.00013698,2]
[334908398,1723637441155,-500.0,0.00013698,2]
[334908399,1723637441165,-500.0,0.00013698,2]
[334908400,1723637441175,-500.0,0.00013698,2]
[334908401,1723637441186,-500.0,0.00013698,2]
[334908402,1723637441194,-500.0,0.00013698,2]
[334908403,1723637441203,-500.0,0.00013698,2]
[334908404,1723637441212,-500.0,0.00013698,2]
[334908405,1723637441223,-500.0,0.00013698,2]
[334908406,1723637441233,-500.0,0.00013698,2]
[334908407,1723637441244,-247.18501387,0.00013698,2]
[334908408,1723637441256,-500.0,0.00013698,2]
[334908409,1723637441265,-500.0,0.00013698,2]
[334908410,1723637441274,-500.0,0.00013698,2]
[334908411,1723637441284,-500.0,0.00013698,2]
[334908412,1723637441294,-500.0,0.00013698,2]
[334908413,1723637441303,-500.0,0.00013698,2]
[334908414,1723637441312,-500.0,0.00013698,2]
[334908415,1723637441322,-500.0,0.00013698,2]
[334908416,1723637441332,-516.09364775,0.00013698,2]
[334908417,1723637441343,-500.0,0.00013698,2]
[334908418,1723637441352,-509.37128122,0.00013698,2]
[334908419,1723637441361,-662.22,0.00013698,2]
[334908420,1723637441370,-500.0,0.00013698,2]
[334908421,1723637441379,-500.0,0.00013698,2]
[334908422,1723637441389,-500.0,0.00013698,2]
[334908423,1723637441398,-500.0,0.00013698,2]
[334908424,1723637441408,-500.0,0.00013698,2]
[334908425,1723637441417,-387.55479876,0.00013698,2]
[334908426,1723637441427,-500.0,0.00013698,2]
[334908427,1723637441437,-506.32587022,0.00013698,2]
[334908428,1723637441447,-1623.44,0.00013698,2]
[334908429,1723637441456,-500.0,0.00013698,2]
[334908430,1723637441466,-500.0,0.00013698,2]
[334908431,1723637441475,-500.0,0.00013698,2]
[334908432,1723637441485,-201.75317374,0.00013698,2]
[334908433,1723637441496,-546.36,0.00013698,2]
[334908434,1723637441506,-507.61307672,0.00013698,2]
[334908435,1723637441516,-500.0,0.00013698,2]
[334908436,1723637441526,-500.0,0.00013698,2]
[334908437,1723637441536,-500.0,0.00013698,2]
[334908438,1723637441546,-500.0,0.00013698,2]
[334908439,1723637441557,-500.0,0.00013698,2]
[334908440,1723637441566,-500.0,0.00013698,2]
[334908441,1723637441576,-500.0,0.00013698,2]
[334908442,1723637441586,-500.0,0.00013698,2]
[334908443,1723637441596,-500.0,0.00013698,2]
[334908444,1723637441606,-504.37159975,0.00013698,2]
[334908445,1723637441616,-500.0,0.00013698,2]
[334908446,1723637441626,-500.0,0.00013698,2]
[334908447,1723637441635,-500.0,0.00013698,2]
[334908448,1723637441645,-500.0,0.00013698,2]
[334908449,1723637441654,-500.0,0.00013698,2]
[334908450,1723637441664,-500.0,0.00013698,2]
[334908451,1723637441673,-500.0,0.00013698,2]
[334908452,1723637441683,-500.0,0.00013698,2]
[334908453,1723637441694,-500.0,0.00013698,2]
[334908454,1723637441703,-534.57,0.00013698,2]
[334908455,1723637441713,-500.0,0.00013698,2]
[334908456,1723637441722,-500.0,0.00013698,2]
[334908457,1723637441734,-500.0,0.00013698,2]
[334908458,1723637441743,-500.0,0.00013698,2]
[334908459,1723637441753,-500.0,0.00013698,2]
[334908460,1723637441762,-500.0,0.00013698,2]
[334908461,1723637441772,-551.46246339,0.00013698,2]
[334908462,1723637441783,-500.0,0.00013698,2]
[334908463,1723637441793,-500.0,0.00013698,2]
[334908464,1723637441803,-500.0,0.00013698,2]
[334908465,1723637441813,-500.0,0.00013698,2]
[334908466,1723637441822,-500.0,0.00013698,2]
[334908467,1723637441832,-500.0,0.00013698,2]
[334908468,1723637441842,-500.0,0.00013698,2]
[334908469,1723637441854,-500.0,0.00013698,2]
[334908470,1723637441864,-500.0,0.00013698,2]
[334908471,1723637441874,-500.0,0.00013698,2]
[334908472,1723637441883,-500.0,0.00013698,2]
[334908473,1723637441892,-500.0,0.00013698,2]
[334908474,1723637441901,-500.0,0.00013698,2]
[334908475,1723637441911,-503.75540415,0.00013698,2]
[334908476,1723637441923,-500.0,0.00013698,2]
[334908477,1723637441934,-500.0,0.00013698,2]
[334908478,1723637441944,-504.72300314,0.00013698,2]
[334908479,1723637441954,-433.69131351,0.00013698,2]
[334908480,1723637441964,-582.29,0.00013698,2]
[334908481,1723637441974,-500.0,0.00013698,2]
[334908482,1723637441984,-500.0,0.00013698,2]
[334908483,1723637441993,-511.15837611,0.00013698,2]
[334908484,1723637442004,-501.80801126,0.00013698,2]
[334908485,1723637442014,-511.82518457,0.00013698,2]
[334908486,1723637442023,-500.0,0.00013698,2]
[334908487,1723637442033,-500.0,0.00013698,2]
[334908488,1723637442043,-500.0,0.00013698,2]
[334908489,1723637442052,-500.0,0.00013698,2]
[334908490,1723637442062,-515.33,0.00013698,2]
[334908491,1723637442072,-506.45911919,0.00013698,2]
[334908492,1723637442082,-500.0,0.00013698,2]
[334908493,1723637442092,-500.0,0.00013698,2]
[334908494,1723637442102,-504.42285475,0.00013698,2]
[334908495,1723637442111,-500.0,0.00013698,2]
[334908496,1723637442121,-500.0,0.00013698,2]
[334908497,1723637442131,-510.28913291,0.00013698,2]
[334908498,1723637442142,-500.0,0.00013698,2]
[334908499,1723637442152,-500.0,0.00013698,2]
[334908500,1723637442162,-500.0,0.00013698,2]
[334908501,1723637442172,-510.24416344,0.00013698,2]
[334908502,1723637442183,-500.0,0.00013698,2]
[334908503,1723637442193,-500.0,0.00013698,2]
[334908504,1723637442203,-500.0,0.00013698,2]
[334908505,1723637442212,-500.0,0.00013698,2]
[334908506,1723637442223,-507.13653321,0.00013698,2]
[334908507,1723637442346,-500.0,0.00013698,2]
[334908509,1723637442368,-500.0,0.00013698,2]
[334908511,1723637442378,-500.0,0.00013698,2]
[334908513,1723637442387,-500.0,0.00013698,2]
[334908514,1723637442397,-500.0,0.00013698,2]
[334908515,1723637442406,-508.07154361,0.00013698,2]
[334908516,1723637442415,-500.0,0.00013698,2]
[334908517,1723637442425,-582.47,0.00013698,2]
[334908518,1723637442435,-500.0,0.00013698,2]
[334908519,1723637442444,-500.0,0.00013698,2]
[334908520,1723637442454,-500.0,0.00013698,2]
[334908521,1723637442463,-500.0,0.00013698,2]
[334908522,1723637442472,-500.0,0.00013698,2]
[334908523,1723637442483,-500.0,0.00013698,2]
[334908524,1723637442493,-500.0,0.00013698,2]
[334908525,1723637442503,-665.77,0.00013698,2]
[334908526,1723637442513,-500.0,0.00013698,2]
[334908527,1723637442524,-500.0,0.00013698,2]
[334908528,1723637442534,-500.0,0.00013698,2]
[334908529,1723637442543,-500.0,0.00013698,2]
[334908530,1723637442554,-500.0,0.00013698,2]
[334908531,1723637442563,-500.0,0.00013698,2]
[334908532,1723637442573,-500.0,0.00013698,2]
[334908533,1723637442582,-586.13,0.00013698,2]
[334908534,1723637442591,-586.13,0.00013698,2]
[334908535,1723637442601,-586.13,0.00013698,2]
[334908536,1723637442610,-586.13,0.00013698,2]
[334908537,1723637442620,-586.13,0.00013698,2]
[334908538,1723637442629,-586.13,0.00013698,2]
[334908539,1723637442639,-500.0,0.00013698,2]
[334908540,1723637442649,-586.13,0.00013698,2]
[334908541,1723637442659,-506.26,0.00013698,2]
[334908542,1723637442670,-586.13,0.00013698,2]
[334908543,1723637442679,-586.13,0.00013698,2]
[334908544,1723637442691,-586.13,0.00013698,2]
[334908545,1723637442700,-586.13,0.00013698,2]
[334908546,1723637442709,-586.13,0.00013698,2]
[334908547,1723637442719,-500.0,0.00013698,2]
[334908548,1723637442728,-586.13,0.00013698,2]
[334908550,1723637442741,-586.13,0.00013698,2]
[334908551,1723637442750,-586.13,0.00013698,2]
[334908552,1723637442759,-586.13,0.00013698,2]
[334908553,1723637442768,-586.13,0.00013698,2]
[334908554,1723637442778,-586.13,0.00013698,2]
[334908555,1723637442787,-586.13,0.00013698,2]
[334908556,1723637442797,-586.13,0.00013698,2]
[334908557,1723637442807,-586.13,0.00013698,2]
[334908558,1723637442816,-586.13,0.00013698,2]
[334908559,1723637442825,-586.13,0.00013698,2]
[334908560,1723637442835,-586.24,0.00013698,2]
[334908561,1723637442845,-500.0,0.00013698,2]
[334908562,1723637442855,-500.0,0.00013698,2]
[334908563,1723637442864,-500.0,0.00013698,2]
[334908564,1723637442875,-500.0,0.00013698,2]
[334908565,1723637442885,-500.0,0.00013698,2]
[334908566,1723637442894,-509.43081434,0.00013698,2]
[334908567,1723637442904,-500.0,0.00013698,2]
[334908568,1723637442914,-500.16,0.00013698,2]
[334908569,1723637442928,-325.97998925,0.00013698,2]
[334908570,1723637442941,-500.0,0.00013698,2]
[334908571,1723637442950,-500.0,0.00013698,2]
[334908572,1723637442960,-500.0,0.00013698,2]
[334908573,1723637442972,-500.0,0.00013698,2]
[334908574,1723637442983,-500.0,0.00013698,2]
[334908575,1723637442993,-500.0,0.00013698,2]
[334908576,1723637443005,-500.0,0.00013698,2]
[334908577,1723637443016,-500.0,0.00013698,2]
[334908578,1723637443027,-500.0,0.00013698,2]
[334908579,1723637443039,-500.0,0.00013698,2]
[334908580,1723637443050,-500.0,0.00013698,2]
[334908581,1723637443060,-589.42881826,0.00013698,2]
[334908582,1723637443070,-500.0,0.00013698,2]
[334908583,1723637443079,-500.0,0.00013698,2]
[334908584,1723637443089,-444.24871973,0.00013698,2]
[334908585,1723637443098,-260.81838656,0.00013698,2]
[334908586,1723637443108,-500.0,0.00013698,2]
[334908587,1723637443118,-500.0,0.00013698,2]
[334908588,1723637443130,-500.0,0.00013698,2]
[334908589,1723637443142,-500.0,0.00013698,2]
[334908590,1723637443153,-500.0,0.00013698,2]
[334908592,1723637443164,-500.0,0.00013698,2]
[334908593,1723637443175,-500.0,0.00013698,2]
[334908594,1723637443185,-500.0,0.00013698,2]
[334908595,1723637443195,-500.0,0.00013698,2]
[334908596,1723637443205,-243.26631301,0.00013698,2]
[334908597,1723637443216,-500.0,0.00013698,2]
[334908598,1723637443226,-405.4467408,0.00013698,2]
[334908599,1723637443237,-500.0,0.00013698,2]
[334908601,1723637443248,-584.31511629,0.00013698,2]
[334908602,1723637443259,-500.0,0.00013698,2]
[334908603,1723637443268,-500.0,0.00013698,2]
[334908604,1723637443277,-500.0,0.00013698,2]
[334908606,1723637443287,-500.0,0.00013698,2]
[334908608,1723637443296,-500.0,0.00013698,2]
[334908609,1723637443306,-500.0,0.00013698,2]
[334908611,1723637443316,-500.0,0.00013698,2]
[334908613,1723637443326,-507.08,0.00013698,2]
[334908615,1723637443335,-500.0,0.00013698,2]
[334908616,1723637443344,-645.0,0.00013698,2]
[334908618,1723637443354,-500.0,0.00013698,2]
[334908619,1723637443364,-500.0,0.00013698,2]
[334908621,1723637443374,-500.0,0.00013698,2]
[334908622,1723637443383,-500.0,0.00013698,2]
[334908623,1723637443393,-500.0,0.00013698,2]
[334908624,1723637443402,-500.0,0.00013698,2]
[334908625,1723637443413,-500.0,0.00013698,2]
[334908626,1723637443423,-500.0,0.00013698,2]
[334908627,1723637443433,-500.0,0.00013698,2]
[334908628,1723637443446,-500.0,0.00013698,2]
[334908629,1723637443457,-500.0,0.00013698,2]
[334908630,1723637443467,-567.48,0.00013698,2]
[334908631,1723637443477,-500.0,0.00013698,2]
[334908632,1723637443487,-500.0,0.00013698,2]
[334908633,1723637443497,-500.0,0.00013698,2]
[334908634,1723637443508,-500.0,0.00013698,2]
[334908635,1723637443518,-500.0,0.00013698,2]
[334908636,1723637443528,-500.0,0.00013698,2]
[334908637,1723637443538,-517.75224784,0.00013698,2]
[334908638,1723637443548,-500.0,0.00013698,2]
[334908639,1723637443559,-500.0,0.00013698,2]
[334908640,1723637443568,-380.33113286,0.00013698,2]
[334908641,1723637443578,-500.0,0.00013698,2]
[334908642,1723637443587,-500.0,0.00013698,2]
[334908643,1723637443597,-500.0,0.00013698,2]
[334908644,1723637443606,-504.01,0.00013698,2]
[334908645,1723637443615,-500.0,0.00013698,2]
[334908646,1723637443627,-500.0,0.00013698,2]
[334908647,1723637443639,-500.0,0.00013698,2]
[334908648,1723637443648,-500.0,0.00013698,2]
[334908649,1723637443657,-500.0,0.00013698,2]
[334908650,1723637443667,-500.0,0.00013698,2]
[334908651,1723637443677,-500.0,0.00013698,2]
[334908652,1723637443687,-500.0,0.00013698,2]
[334908653,1723637443699,-500.0,0.00013698,2]
[334908654,1723637443709,-500.0,0.00013698,2]
[334908655,1723637443720,-500.0,0.00013698,2]
[334908656,1723637443731,-500.0,0.00013698,2]
[334908657,1723637443740,-500.0,0.00013698,2]
[334908658,1723637443750,-153.530448,0.00013698,2]
[334908659,1723637443760,-500.0,0.00013698,2]
[334908660,1723637443768,-500.0,0.00013698,2]
[334908661,1723637443778,-252.93024233,0.00013698,2]
[334908662,1723637443788,-500.0,0.00013698,2]
[334908663,1723637443797,-504.9345993,0.00013698,2]
[334908664,1723637443807,-500.0,0.00013698,2]
[334908665,1723637443817,-500.0,0.00013698,2]
[334908666,1723637443827,-506.22165351,0.00013698,2]
[334908667,1723637443838,-500.0,0.00013698,2]
[334908668,1723637443848,-500.0,0.00013698,2]
[334908669,1723637443859,-500.0,0.00013698,2]
[334908670,1723637443869,-500.0,0.00013698,2]
[334908671,1723637443879,-500.0,0.00013698,2]
[334908672,1723637443889,-500.0,0.00013698,2]
[334908673,1723637443898,-500.0,0.00013698,2]
[334908674,1723637443907,-500.0,0.00013698,2]
[334908675,1723637443918,-650.48,0.00013698,2]
[334908676,1723637443932,-500.0,0.00013698,2]
[334908677,1723637443942,-500.0,0.00013698,2]
[334908678,1723637443953,-500.0,0.00013698,2]
[334908679,1723637443963,-500.0,0.00013698,2]
[334908680,1723637443974,-434.74843889,0.00013698,2]
[334908681,1723637443984,-500.0,0.00013698,2]
[334908682,1723637443994,-503.59520843,0.00013698,2]
[334908683,1723637444005,-500.0,0.00013698,2]
[334908684,1723637444014,-628.96,0.00013698,2]
[334908685,1723637444024,-500.0,0.00013698,2]
[334908686,1723637444034,-640.38656614,0.00013698,2]
[334908687,1723637444044,-500.0,0.00013698,2]
[334908688,1723637444054,-500.0,0.00013698,2]
[334908689,1723637444064,-500.0,0.00013698,2]
[334908690,1723637444074,-500.0,0.00013698,2]
[334908691,1723637444083,-500.0,0.00013698,2]
[334908692,1723637444093,-500.0,0.00013698,2]
[334908693,1723637444104,-500.0,0.00013698,2]
[334908694,1723637444113,-500.0,0.00013698,2]
[334908695,1723637444123,-500.0,0.00013698,2]
[334908696,1723637444133,-500.0,0.00013698,2]
[334908697,1723637444144,-500.0,0.00013698,2]
[334908698,1723637444154,-500.0,0.00013698,2]
[334908699,1723637444165,-500.0,0.00013698,2]
[334908700,1723637444174,-360.51454889,0.00013698,2]
[334908701,1723637444184,-500.0,0.00013698,2]
[334908702,1723637444196,-500.0,0.00013698,2]
[334908703,1723637444206,-506.66035151,0.00013698,2]
[334908704,1723637444216,-500.0,0.00013698,2]
[334908705,1723637444225,-500.0,0.00013698,2]
[334908706,1723637444235,-516.95174422,0.00013698,2]
[334908707,1723637444245,-500.0,0.00013698,2]
[334908708,1723637444255,-500.0,0.00013698,2]
[334908709,1723637444265,-500.0,0.00013698,2]
[334908710,1723637444275,-500.0,0.00013698,2]
[334908711,1723637444285,-500.0,0.00013698,2]
[334908712,1723637444295,-500.0,0.00013698,2]
[334908713,1723637444305,-656.91,0.00013698,2]
[334908714,1723637444315,-500.0,0.00013698,2]
[334908715,1723637444324,-500.0,0.00013698,2]
[334908716,1723637444334,-500.0,0.00013698,2]
[334908717,1723637444344,-500.0,0.00013698,2]
[334908718,1723637444353,-500.0,0.00013698,2]
[334908719,1723637444363,-500.0,0.00013698,2]
[334908720,1723637444373,-500.0,0.00013698,2]
[334908721,1723637444383,-500.0,0.00013698,2]
[334908722,1723637444392,-657.07,0.00013698,2]
[334908723,1723637444402,-653.0,0.00013698,2]
[334908724,1723637444411,-500.0,0.00013698,2]
[334908725,1723637444421,-500.0,0.00013698,2]
[334908726,1723637444431,-500.0,0.00013698,2]
[334908727,1723637444442,-500.0,0.00013698,2]
[334908728,1723637444451,-662.85,0.00013698,2]
[334908729,1723637444460,-500.0,0.00013698,2]
[334908730,1723637444470,-500.0,0.00013698,2]
[334908731,1723637444479,-500.0,0.00013698,2]
[334908732,1723637444490,-527.47,0.00013698,2]
[334908733,1723637444499,-189.61162963,0.00013698,2]
[334908734,1723637444508,-500.0,0.00013698,2]
[334908735,1723637444518,-500.0,0.00013698,2]
[334908736,1723637444527,-269.28091569,0.00013698,2]
[334908737,1723637444536,-500.0,0.00013698,2]
[334908738,1723637444546,-500.0,0.00013698,2]
[334908739,1723637444555,-500.0,0.00013698,2]
[334908740,1723637444565,-500.0,0.00013698,2]
[334908741,1723637444575,-500.0,0.00013698,2]
[334908742,1723637444584,-500.0,0.00013698,2]
[334908743,1723637444593,-500.0,0.00013698,2]
[334908744,1723637444603,-500.0,0.00013698,2]
[334908745,1723637444612,-500.0,0.00013698,2]
[334908746,1723637444622,-500.0,0.00013698,2]
[334908747,1723637444631,-500.0,0.00013698,2]
[334908748,1723637444641,-500.0,0.00013698,2]
[334908749,1723637444650,-242.07312287,0.00013698,2]
[334908750,1723637445561,-637.33592998,0.00013347,2]
[334908752,1723637445750,-329.9129517,9.138e-05,2]
[334908753,1723637445759,-1311.02903542,0.00013347,2]
[334908764,1723637446069,-1298.02517581,0.00013347,2]
[334908765,1723637446110,-961.81211323,0.00013347,2]
[334908766,1723637446163,-5511.394515,0.00013347,2]
[334908778,1723637972955,151163.93448183,0.00025,60]
[334908785,1723638435150,-303.5521163,8.766e-05,2]
[334908786,1723638435173,-303.5521163,8.855e-05,2]
[334908787,1723638435195,-303.5521163,8.945e-05,2]
[334908788,1723638435217,-200.0,8.95e-05,2]
[334908789,1723638435239,-404.08727484,9.502e-05,2]
[334908790,1723638435267,-154.74467129,0.0001,2]
[334908791,1723638435289,-400.0,0.0001032,2]
[334908792,1723638435314,-300.0,0.00011353,2]
[334908793,1723638435343,-24900.0,0.00011354,2]
[334908794,1723638435366,-600.0,0.00012323,2]
[334908795,1723638435388,-300.0,0.00012488,2]
[334908796,1723638435410,-217.174977,0.00012823,2]
[334908797,1723638435432,-184.08892,0.00012823,2]
[334908798,1723638435453,-154.79103211,0.00012949,2]
[334908799,1723638435477,-493.03932546,0.0001295,2]
[334908800,1723638435498,-500.0,0.00012986,2]
[334908801,1723638435520,-1000.0,0.00013,13]
[334908802,1723638435541,-507.34,0.00013,2]
[334908803,1723638435565,-94650.9861064,0.00013346,2]
[334908804,1723638438128,-5349.0138936,0.00013346,2]
[334908805,1723638438156,-199.62286211,0.00013412,2]
[334908806,1723638438178,-1000.0,0.00013429,2]
[334908807,1723638438201,-5324.10913299,0.00013431,2]
[334908808,1723638438223,-1000.0,0.00013457,2]
[334908809,1723638438250,-217.174977,0.00013464,2]
[334908810,1723638438272,-1000.0,0.00013484,2]
[334908811,1723638438298,-150.112235,0.000135,2]
[334908812,1723638438321,-35577.0323321,0.00013509,2]
[334908813,1723638441154,-10370.530791,0.00013509,2]
[334908922,1723638638563,-200.0,8.595e-05,2]
[334908923,1723638638573,-200.0,8.69e-05,2]
[334908924,1723638638583,-400.0,0.0001006,2]
[334908925,1723638638593,-352.281199,0.00011591,2]
[334908959,1723638640614,-200.0,8.509e-05,2]
[334908960,1723638640625,-609.96960681,0.00011591,2]
[334908974,1723638643302,-12268.85596251,0.00011591,2]
[334909026,1723638646693,-200.0,8.69e-05,2]
[334909027,1723638646703,-400.0,0.0001006,2]
[334909028,1723638646713,-11668.89323168,0.00011591,2]
[334909029,1723638646723,-600.0,0.00012063,2]
[334909030,1723638646733,-788.00599928,0.00012705,2]
[334909031,1723638646742,-500.0,0.00012986,2]
[334909032,1723638646752,-1657.3302104,0.00013433,2]
[334909033,1723638646762,-20784.67491515,0.00013477,2]
[334909034,1723638646772,-661.09964631,0.00013509,2]
[334909035,1723638646782,-886.51060802,0.00013509,2]
[334909036,1723638646792,-235.30764411,0.00013509,2]
[334909037,1723638646809,-167.22741369,0.00013509,2]
[334909038,1723638646820,-154.74467129,0.00013509,2]
[334909039,1723638646830,-3790.35786232,0.00013509,2]
[334909040,1723638646840,-1507.6909685,0.00013509,2]
[334909041,1723638646849,-1000.0,0.00013512,2]
[334909042,1723638646859,-301.29579535,0.00013538,2]
[334909043,1723638646870,-1000.0,0.00013539,2]
[334909044,1723638646880,-18763.22967831,0.00013543,2]
[334909045,1723638647080,-13986.323184,0.00013543,2]
[334909065,1723639650113,-273.37336231,8.865e-05,2]
[334909066,1723639650136,-273.37336231,8.955e-05,2]
[334909067,1723639650159,-9.23646906,9.05e-05,2]
[334909132,1723639832357,-190.76353094,8.869e-05,2]
[334909134,1723639832367,-200.0,8.87e-05,2]
[334909136,1723639832377,-190.76353094,8.959e-05,2]
[334909138,1723639832387,-356.69936343,9.05e-05,2]
[334909188,1723639838474,-190.76353094,8.78e-05,2]
[334909189,1723639838487,-4361.59518958,9.05e-05,2]
[334909190,1723639838497,-3790.35786232,9.05e-05,2]
[334909191,1723639838507,-3611.12283265,9.05e-05,2]
[334909192,1723639838517,-218.62299037,9.05e-05,2]
[334909193,1723639838526,-380.61155709,9.05e-05,2]
[334909194,1723639838535,-377.66135017,9.05e-05,2]
[334909195,1723639838547,-920.74214393,9.05e-05,2]
[334909197,1723639838566,-810.54698678,9.05e-05,2]
[334909198,1723639838576,-886.51060802,9.05e-05,2]
[334909199,1723639838585,-1057.37014352,9.999e-05,2]
[334909200,1723639838594,-400.0,0.0001024,2]
[334909201,1723639838603,-10622.60478353,0.00010757,2]
[334909202,1723639838615,-432.85647337,0.00010757,2]
[334909203,1723639838649,-420.30828837,0.00010757,2]
[334909231,1723639840467,-13424.23045473,0.00010757,2]
[334909232,1723639840477,-154.76012181,0.00010917,2]
[334909233,1723639840492,-482.1,0.00010959,2]
[334909234,1723639840501,-225.3139075,0.0001097,2]
[334909235,1723639840511,-174.81086157,0.0001097,2]
[334909236,1723639840520,-600.0,0.00012243,2]
[334909237,1723639840545,-728.43490027,0.00012981,2]
[334909238,1723639840557,-1765.67532584,0.00012982,2]
[334909239,1723639840566,-500.0,0.00012986,2]
[334909240,1723639840576,-1000.0,0.00013,13]
[334909241,1723639840587,-9435.70289252,0.00013212,2]
[334909242,1723639840597,-5324.10913299,0.00013213,2]
[334909243,1723639840606,-154.74467129,0.00013233,2]
[334909244,1723639840617,-210.46534843,0.00013234,2]
[334909245,1723639840627,-150.0,0.00013404,2]
[334909246,1723639840636,-100000.0,0.00013466,2]
[334909247,1723639840647,-89286.9487125,0.00013467,2]
[334909248,1723639840657,-154.74467129,0.00013467,2]
[334909249,1723639840667,-154.74467129,0.00013477,2]
[334909250,1723639840679,-2158.50520604,0.00013489,2]
[334909251,1723639840692,-150.112233,0.000135,2]
[334909252,1723639840702,-150.112233,0.000135,2]
[334909253,1723639840714,-317.0,0.000135,5]
[334909254,1723639840724,-154.74467129,0.00013508,4]
[334909255,1723639840739,-2158.50520604,0.00013516,2]
[334909256,1723639840757,-1000.0,0.00013542,2]
[334909257,1723639840768,-55442.34208291,0.00013542,2]
[334909258,1723639840778,-661.09964631,0.00013543,2]
[334909259,1723639840787,-154.79102594,0.00013543,2]
[334909260,1723639840797,-2158.50520604,0.00013544,2]
[334909261,1723639840807,-10183.34825179,0.00013559,2]
[334909262,1723639840817,-44643.4743563,0.0001356,2]
[334909263,1723639840826,-1775.76990072,0.00013567,2]
[334909264,1723639840837,-2158.50520604,0.00013571,2]